[Event "Late-Titled-Tuesday-Blitz-March-19-2024"]
[Site "Chess.com"]
[Date "2024.03.19"]
[Round "2"]
[White "ncofre98"]
[Black "Lukianoo"]
[Result "0-1"]
[WhiteElo "2596"]
[BlackElo "2839"]
[TimeControl "180+1"]
[EndTime "14:15:18 PDT"]
[Termination "Lukianoo won by resignation"]

1. e4 {[%clk 0:03:00.9]} 1... c6 {[%clk 0:03:00.2]} 2. d4 {[%clk 0:03:00.9]}
2... d5 {[%clk 0:03:00.8]} 3. exd5 {[%clk 0:03:01]} 3... cxd5 {[%clk 0:03:00.8]}
4. c4 {[%clk 0:03:01.9]} 4... Nf6 {[%clk 0:03:00.2]} 5. Nc3 {[%clk 0:03:02.6]}
5... Nc6 {[%clk 0:03:00.6]} 6. Bg5 {[%clk 0:03:01.9]} 6... Be6 {[%clk
0:03:00.3]} 7. a3 {[%clk 0:03:01.6]} 7... g6 {[%clk 0:02:49.5]} 8. c5 {[%clk
0:02:59.2]} 8... Bg7 {[%clk 0:02:49.3]} 9. Bb5 {[%clk 0:02:56.7]} 9... O-O
{[%clk 0:02:48.7]} 10. Bxf6 {[%clk 0:02:51.2]} 10... Bxf6 {[%clk 0:02:42.3]} 11.
Nge2 {[%clk 0:02:51.6]} 11... Bg4 {[%clk 0:02:39.1]} 12. f3 {[%clk 0:02:50.6]}
12... Bf5 {[%clk 0:02:35.8]} 13. f4 {[%clk 0:02:42.8]} 13... Bh4+ {[%clk
0:02:25.4]} 14. g3 {[%clk 0:02:41.1]} 14... Bf6 {[%clk 0:02:25.5]} 15. O-O
{[%clk 0:02:40.6]} 15... a6 {[%clk 0:02:26]} 16. Bd3 {[%clk 0:02:38.6]} 16...
Nxd4 {[%clk 0:02:24.3]} 17. Bxf5 {[%clk 0:02:37.4]} 17... Nxf5 {[%clk
0:02:25.2]} 18. Nxd5 {[%clk 0:02:35.1]} 18... Bxb2 {[%clk 0:02:23.9]} 19. Rb1
{[%clk 0:02:34.9]} 19... Bd4+ {[%clk 0:02:20.2]} 20. Nxd4 {[%clk 0:02:30.7]}
20... Qxd5 {[%clk 0:02:20.4]} 21. Nxf5 {[%clk 0:02:30.1]} 21... Qxf5 {[%clk
0:02:20.2]} 22. Qd4 {[%clk 0:01:56.4]} 22... Rfd8 {[%clk 0:02:18.4]} 23. Qf2
{[%clk 0:01:50.1]} 23... Rd7 {[%clk 0:02:16.2]} 24. Rbe1 {[%clk 0:01:41]} 24...
Rad8 {[%clk 0:02:09.3]} 25. Re5 {[%clk 0:01:41.4]} 25... Qf6 {[%clk 0:02:07.7]}
26. Rfe1 {[%clk 0:01:38.9]} 26... e6 {[%clk 0:02:04.6]} 27. Qf3 {[%clk
0:01:37.6]} 27... Rd5 {[%clk 0:02:01.5]} 28. Qb3 {[%clk 0:01:33.3]} 28... R8d7
{[%clk 0:01:53.3]} 0-1

[Event "Late-Titled-Tuesday-Blitz-March-19-2024"]
[Site "Chess.com"]
[Date "2024.03.19"]
[Round "2"]
[White "jamengrand"]
[Black "Mackster23"]
[Result "0-1"]
[WhiteElo "2332"]
[BlackElo "2561"]
[TimeControl "180+1"]
[EndTime "14:15:29 PDT"]
[Termination "Mackster23 won by resignation"]

1. e4 {[%clk 0:03:00.9]} 1... c5 {[%clk 0:02:59]} 2. Nf3 {[%clk 0:03:00.4]} 2...
d6 {[%clk 0:02:59.5]} 3. d4 {[%clk 0:03:00.4]} 3... cxd4 {[%clk 0:03:00.4]} 4.
Nxd4 {[%clk 0:03:00.9]} 4... Nf6 {[%clk 0:03:01.2]} 5. Nc3 {[%clk 0:03:01.4]}
5... a6 {[%clk 0:03:01.9]} 6. Bd3 {[%clk 0:03:01.7]} 6... Nc6 {[%clk 0:02:57.3]}
7. Nxc6 {[%clk 0:02:59.5]} 7... bxc6 {[%clk 0:02:58.2]} 8. O-O {[%clk
0:02:57.9]} 8... g6 {[%clk 0:02:56.4]} 9. f4 {[%clk 0:02:57.7]} 9... Bg7 {[%clk
0:02:53.6]} 10. e5 {[%clk 0:02:57.9]} 10... dxe5 {[%clk 0:02:40]} 11. fxe5
{[%clk 0:02:58.1]} 11... Ng4 {[%clk 0:02:40.7]} 12. e6 {[%clk 0:02:49.9]} 12...
Bxe6 {[%clk 0:02:38]} 13. Kh1 {[%clk 0:02:38.8]} 13... Qb6 {[%clk 0:02:11.4]}
14. Qe2 {[%clk 0:02:37.3]} 14... O-O {[%clk 0:02:09.2]} 15. Ne4 {[%clk 0:02:20]}
15... Ne5 {[%clk 0:01:50]} 16. Ng5 {[%clk 0:01:58.8]} 16... Nxd3 {[%clk
0:01:40.4]} 17. Nxe6 {[%clk 0:01:56.8]} 17... Nxc1 {[%clk 0:01:40.4]} 18. Raxc1
{[%clk 0:01:44.3]} 18... fxe6 {[%clk 0:01:39.2]} 19. Qxe6+ {[%clk 0:01:44.3]}
19... Kh8 {[%clk 0:01:39.2]} 20. Qxe7 {[%clk 0:01:38.9]} 20... Rae8 {[%clk
0:01:32]} 21. Rxf8+ {[%clk 0:01:36.2]} 21... Rxf8 {[%clk 0:01:32.9]} 22. Rd1
{[%clk 0:01:31.7]} 22... Qxb2 {[%clk 0:01:17.3]} 23. h3 {[%clk 0:01:31.8]} 23...
Qxc2 {[%clk 0:01:11.9]} 24. Rd7 {[%clk 0:01:29.9]} 24... Qc1+ {[%clk 0:01:11.3]}
25. Kh2 {[%clk 0:01:29.9]} 25... Qf4+ {[%clk 0:01:11.7]} 26. Kh1 {[%clk
0:01:30.4]} 26... Qf1+ {[%clk 0:01:06.9]} 27. Kh2 {[%clk 0:01:30.5]} 27... Qf6
{[%clk 0:01:07.1]} 0-1

[Event "Late-Titled-Tuesday-Blitz-March-19-2024"]
[Site "Chess.com"]
[Date "2024.03.19"]
[Round "2"]
[White "ViIIagra"]
[Black "Vahe_Danielyan"]
[Result "0-1"]
[WhiteElo "2919"]
[BlackElo "2651"]
[TimeControl "180+1"]
[EndTime "14:15:34 PDT"]
[Termination "Vahe_Danielyan won by resignation"]

1. d4 {[%clk 0:03:00.9]} 1... Nf6 {[%clk 0:02:58.7]} 2. Nd2 {[%clk 0:03:00.9]}
2... d5 {[%clk 0:02:55.8]} 3. e3 {[%clk 0:03:00.8]} 3... Bf5 {[%clk 0:02:53.5]}
4. Ngf3 {[%clk 0:03:01.4]} 4... e6 {[%clk 0:02:53.2]} 5. Be2 {[%clk 0:03:01.8]}
5... Bd6 {[%clk 0:02:53]} 6. Nh4 {[%clk 0:03:01.6]} 6... Bg6 {[%clk 0:02:47.5]}
7. c4 {[%clk 0:02:47.3]} 7... c6 {[%clk 0:02:45.2]} 8. Qb3 {[%clk 0:02:47.1]}
8... b6 {[%clk 0:02:17.1]} 9. Nxg6 {[%clk 0:02:26]} 9... hxg6 {[%clk 0:02:16.9]}
10. h3 {[%clk 0:02:17.1]} 10... Nbd7 {[%clk 0:02:15.9]} 11. O-O {[%clk 0:02:12]}
11... g5 {[%clk 0:02:14.5]} 12. Rd1 {[%clk 0:02:05.1]} 12... g4 {[%clk 0:02:10]}
13. hxg4 {[%clk 0:02:02.1]} 13... Ne4 {[%clk 0:01:43.5]} 14. f4 {[%clk
0:00:58.5]} 14... Rh1+ {[%clk 0:01:14.8]} 15. Kxh1 {[%clk 0:00:56.1]} 15... Qh4+
{[%clk 0:01:15.7]} 16. Kg1 {[%clk 0:00:56.5]} 16... Qf2+ {[%clk 0:01:16.6]} 17.
Kh2 {[%clk 0:00:47.6]} 17... Ke7 {[%clk 0:01:17.5]} 0-1

[Event "Late-Titled-Tuesday-Blitz-March-19-2024"]
[Site "Chess.com"]
[Date "2024.03.19"]
[Round "2"]
[White "Polish_fighter3000"]
[Black "CarlosjPineror"]
[Result "1-0"]
[WhiteElo "3127"]
[BlackElo "2681"]
[TimeControl "180+1"]
[EndTime "14:15:36 PDT"]
[Termination "Polish_fighter3000 won by resignation"]

1. e4 {[%clk 0:03:00.9]} 1... c5 {[%clk 0:03:00.2]} 2. Nf3 {[%clk 0:02:58.4]}
2... e6 {[%clk 0:03:00.9]} 3. b3 {[%clk 0:02:56]} 3... b6 {[%clk 0:03:00.7]} 4.
Bb2 {[%clk 0:02:53.9]} 4... Bb7 {[%clk 0:03:01.4]} 5. Nc3 {[%clk 0:02:54.1]}
5... a6 {[%clk 0:03:01.6]} 6. d4 {[%clk 0:02:50.7]} 6... cxd4 {[%clk 0:03:01.6]}
7. Nxd4 {[%clk 0:02:51.2]} 7... Qc7 {[%clk 0:03:02.5]} 8. Qd2 {[%clk 0:02:49.6]}
8... Nf6 {[%clk 0:03:03.2]} 9. f3 {[%clk 0:02:49.1]} 9... Nc6 {[%clk 0:03:03]}
10. O-O-O {[%clk 0:02:47.5]} 10... Bb4 {[%clk 0:02:56]} 11. a3 {[%clk
0:02:44.3]} 11... Be7 {[%clk 0:02:55.4]} 12. Kb1 {[%clk 0:02:39.1]} 12... O-O
{[%clk 0:02:54.8]} 13. g4 {[%clk 0:02:38.3]} 13... d6 {[%clk 0:02:53]} 14. g5
{[%clk 0:02:35.1]} 14... Nd7 {[%clk 0:02:53.1]} 15. h4 {[%clk 0:02:32.3]} 15...
Rac8 {[%clk 0:02:53.6]} 16. Nf5 {[%clk 0:02:25.1]} 16... exf5 {[%clk 0:02:44.3]}
17. Nd5 {[%clk 0:02:25.7]} 17... Qd8 {[%clk 0:02:43.5]} 18. exf5 {[%clk
0:02:25.9]} 18... Nce5 {[%clk 0:02:36.7]} 19. f4 {[%clk 0:02:24.3]} 19... Bxd5
{[%clk 0:01:53.4]} 20. Qxd5 {[%clk 0:02:25.2]} 20... Ng4 {[%clk 0:01:54.2]} 21.
Rg1 {[%clk 0:02:15.5]} 21... Ne3 {[%clk 0:01:43.9]} 22. Qd4 {[%clk 0:02:14.9]}
22... Nxf5 {[%clk 0:01:43.8]} 23. Qe4 {[%clk 0:02:10.1]} 23... g6 {[%clk
0:01:38.1]} 24. h5 {[%clk 0:02:06.7]} 24... Nc5 {[%clk 0:01:33.3]} 25. Qf3
{[%clk 0:02:06.7]} 25... Ne6 {[%clk 0:01:29.8]} 26. hxg6 {[%clk 0:01:51]} 26...
fxg6 {[%clk 0:01:30.7]} 27. Qd5 {[%clk 0:01:49.9]} 27... Qd7 {[%clk 0:01:27.8]}
28. Re1 {[%clk 0:01:49.7]} 28... Kf7 {[%clk 0:01:26.3]} 29. b4 {[%clk 0:01:38]}
29... b5 {[%clk 0:01:20.4]} 30. Bd3 {[%clk 0:01:37]} 30... Rfe8 {[%clk
0:01:09.2]} 31. Bxf5 {[%clk 0:01:34.5]} 31... gxf5 {[%clk 0:01:09.9]} 32. Qxf5+
{[%clk 0:01:34.5]} 32... Kg8 {[%clk 0:01:06.9]} 33. g6 {[%clk 0:01:35]} 1-0

[Event "Late-Titled-Tuesday-Blitz-March-19-2024"]
[Site "Chess.com"]
[Date "2024.03.19"]
[Round "2"]
[White "Vladimir_Zakhartsov"]
[Black "best926"]
[Result "1-0"]
[WhiteElo "2984"]
[BlackElo "2548"]
[TimeControl "180+1"]
[EndTime "14:15:36 PDT"]
[Termination "Vladimir_Zakhartsov won by resignation"]

1. d4 {[%clk 0:02:56.2]} 1... d5 {[%clk 0:02:58.1]} 2. c4 {[%clk 0:02:56.5]}
2... e6 {[%clk 0:02:58.1]} 3. Nf3 {[%clk 0:02:56.6]} 3... a6 {[%clk 0:02:58]} 4.
cxd5 {[%clk 0:02:54.9]} 4... exd5 {[%clk 0:02:58.9]} 5. Nc3 {[%clk 0:02:55.2]}
5... h6 {[%clk 0:02:58.1]} 6. Bf4 {[%clk 0:02:52.8]} 6... Nf6 {[%clk 0:02:57.1]}
7. e3 {[%clk 0:02:51.6]} 7... Bd6 {[%clk 0:02:57.5]} 8. Ne5 {[%clk 0:02:52]}
8... O-O {[%clk 0:02:56.1]} 9. Bd3 {[%clk 0:02:52.1]} 9... Re8 {[%clk
0:02:56.6]} 10. Bg3 {[%clk 0:02:42.4]} 10... c5 {[%clk 0:02:55.6]} 11. O-O
{[%clk 0:02:40.7]} 11... b5 {[%clk 0:02:50.1]} 12. Rc1 {[%clk 0:02:39.1]} 12...
Bb7 {[%clk 0:02:42.5]} 13. Bb1 {[%clk 0:02:31.5]} 13... c4 {[%clk 0:02:41.1]}
14. f4 {[%clk 0:02:29.8]} 14... Nfd7 {[%clk 0:01:57.6]} 15. Qh5 {[%clk
0:02:25.8]} 15... Qe7 {[%clk 0:01:29.4]} 16. Bh4 {[%clk 0:02:11.3]} 16... f6
{[%clk 0:01:25.7]} 17. Rf3 {[%clk 0:02:00.7]} 17... Bxe5 {[%clk 0:00:20.2]} 18.
fxe5 {[%clk 0:01:58.2]} 18... Qf7 {[%clk 0:00:20.9]} 19. Bg6 {[%clk 0:01:44.4]}
1-0

[Event "Late-Titled-Tuesday-Blitz-March-19-2024"]
[Site "Chess.com"]
[Date "2024.03.19"]
[Round "2"]
[White "Sinquefield"]
[Black "lluiss"]
[Result "1-0"]
[WhiteElo "2515"]
[BlackElo "2262"]
[TimeControl "180+1"]
[EndTime "14:15:36 PDT"]
[Termination "Sinquefield won by resignation"]

1. d4 {[%clk 0:02:54.5]} 1... Nf6 {[%clk 0:02:59.1]} 2. Bg5 {[%clk 0:02:53.8]}
2... e6 {[%clk 0:02:58.3]} 3. Nf3 {[%clk 0:02:52.4]} 3... c5 {[%clk 0:02:56.5]}
4. e3 {[%clk 0:02:52.2]} 4... b6 {[%clk 0:02:56.3]} 5. Nbd2 {[%clk 0:02:52.4]}
5... Bb7 {[%clk 0:02:56.4]} 6. Bd3 {[%clk 0:02:51.7]} 6... Be7 {[%clk
0:02:56.9]} 7. c3 {[%clk 0:02:50.6]} 7... O-O {[%clk 0:02:56.6]} 8. O-O {[%clk
0:02:51]} 8... h6 {[%clk 0:02:56.9]} 9. Bh4 {[%clk 0:02:50.9]} 9... Nc6 {[%clk
0:02:55.3]} 10. Re1 {[%clk 0:02:51.1]} 10... cxd4 {[%clk 0:02:43.1]} 11. exd4
{[%clk 0:02:49]} 11... d6 {[%clk 0:02:43.5]} 12. Qe2 {[%clk 0:02:47.6]} 12...
Nb8 {[%clk 0:02:34.5]} 13. Rad1 {[%clk 0:02:44.1]} 13... Nbd7 {[%clk 0:02:33.6]}
14. Nc4 {[%clk 0:02:43.8]} 14... d5 {[%clk 0:01:59]} 15. Ncd2 {[%clk 0:02:32.7]}
15... a5 {[%clk 0:01:43.3]} 16. Ne5 {[%clk 0:02:31.3]} 16... Nxe5 {[%clk
0:01:38.4]} 17. dxe5 {[%clk 0:02:32.2]} 17... Nd7 {[%clk 0:01:37.4]} 18. Bxe7
{[%clk 0:02:32.1]} 18... Qxe7 {[%clk 0:01:37.4]} 19. Qh5 {[%clk 0:02:32.6]}
19... Rfd8 {[%clk 0:01:24.6]} 20. Nf3 {[%clk 0:02:27.5]} 20... Nc5 {[%clk
0:01:24.6]} 21. Bb1 {[%clk 0:02:25.4]} 21... Ne4 {[%clk 0:01:24.6]} 22. Rd4
{[%clk 0:02:18.2]} 22... b5 {[%clk 0:01:17.5]} 23. h3 {[%clk 0:02:08.4]} 23...
Rab8 {[%clk 0:01:11.2]} 24. Nh2 {[%clk 0:02:07.6]} 24... Qg5 {[%clk 0:01:07.6]}
25. Qd1 {[%clk 0:02:02.7]} 25... Nc5 {[%clk 0:00:48.5]} 26. Rg4 {[%clk
0:01:59.7]} 26... Qe7 {[%clk 0:00:43.2]} 27. Nf3 {[%clk 0:01:54.1]} 27... Na4
{[%clk 0:00:40.5]} 28. Qc2 {[%clk 0:01:51.9]} 28... Bc6 {[%clk 0:00:39.8]} 29.
Qh7+ {[%clk 0:01:49.9]} 1-0

[Event "Late-Titled-Tuesday-Blitz-March-19-2024"]
[Site "Chess.com"]
[Date "2024.03.19"]
[Round "2"]
[White "korkmaz16"]
[Black "Jahonas"]
[Result "1-0"]
[WhiteElo "2571"]
[BlackElo "2360"]
[TimeControl "180+1"]
[EndTime "14:15:39 PDT"]
[Termination "korkmaz16 won by resignation"]

1. e4 {[%clk 0:03:00.1]} 1... c6 {[%clk 0:03:00.3]} 2. d4 {[%clk 0:03:00]} 2...
d5 {[%clk 0:03:00.9]} 3. Nc3 {[%clk 0:02:59.4]} 3... dxe4 {[%clk 0:03:01.1]} 4.
Nxe4 {[%clk 0:03:00.3]} 4... Nd7 {[%clk 0:03:01.2]} 5. Ng5 {[%clk 0:03:00.4]}
5... Ngf6 {[%clk 0:02:57.8]} 6. Bc4 {[%clk 0:03:00.3]} 6... e6 {[%clk 0:02:58]}
7. Qe2 {[%clk 0:03:00.2]} 7... Nb6 {[%clk 0:02:51.5]} 8. Bd3 {[%clk 0:02:58.8]}
8... h6 {[%clk 0:02:45.5]} 9. N5f3 {[%clk 0:02:57.6]} 9... Bd6 {[%clk 0:02:44]}
10. Ne5 {[%clk 0:02:55]} 10... Qc7 {[%clk 0:02:40.3]} 11. Ngf3 {[%clk
0:02:54.5]} 11... Nbd5 {[%clk 0:02:27.1]} 12. a3 {[%clk 0:02:45.2]} 12... b5
{[%clk 0:02:26.3]} 13. O-O {[%clk 0:02:42.9]} 13... O-O {[%clk 0:02:18.7]} 14.
Bd2 {[%clk 0:02:35]} 14... a6 {[%clk 0:02:16.8]} 15. Rac1 {[%clk 0:02:34.5]}
15... Bb7 {[%clk 0:02:06.7]} 16. c4 {[%clk 0:02:33.6]} 16... bxc4 {[%clk
0:02:07]} 17. Nxc4 {[%clk 0:02:33.2]} 17... Bf4 {[%clk 0:02:03.4]} 18. Nce5
{[%clk 0:02:30.3]} 18... Bxd2 {[%clk 0:02:01]} 19. Qxd2 {[%clk 0:02:30]} 19...
Rfd8 {[%clk 0:01:56.3]} 20. Rfd1 {[%clk 0:02:28.5]} 20... Qb6 {[%clk 0:01:55.3]}
21. Bb1 {[%clk 0:02:27.7]} 21... Rac8 {[%clk 0:01:52.8]} 22. Qc2 {[%clk
0:02:27.1]} 22... Ne7 {[%clk 0:01:36.3]} 23. Nc4 {[%clk 0:02:22.3]} 23... Qc7
{[%clk 0:01:34]} 24. b4 {[%clk 0:02:13.7]} 24... Qf4 {[%clk 0:01:20.9]} 25. Nce5
{[%clk 0:02:06.1]} 25... Nf5 {[%clk 0:01:13.5]} 26. g3 {[%clk 0:02:02.1]} 26...
Nxd4 {[%clk 0:01:04.8]} 27. gxf4 {[%clk 0:01:58.8]} 27... Nxc2 {[%clk
0:01:03.7]} 28. Bxc2 {[%clk 0:01:59.1]} 28... Nd5 {[%clk 0:01:03.4]} 29. f5
{[%clk 0:01:54.8]} 29... f6 {[%clk 0:01:02.5]} 30. Ng6 {[%clk 0:01:52.4]} 30...
Nc3 {[%clk 0:00:56.1]} 31. Re1 {[%clk 0:01:40.5]} 31... Rc7 {[%clk 0:00:51.3]}
1-0

[Event "Late-Titled-Tuesday-Blitz-March-19-2024"]
[Site "Chess.com"]
[Date "2024.03.19"]
[Round "2"]
[White "Leo_C"]
[Black "igorkovalenko"]
[Result "1-0"]
[WhiteElo "2649"]
[BlackElo "2918"]
[TimeControl "180+1"]
[EndTime "14:15:41 PDT"]
[Termination "Leo_C won by checkmate"]

1. d4 {[%clk 0:02:43.1]} 1... Nf6 {[%clk 0:02:35.2]} 2. c4 {[%clk 0:02:42.6]}
2... e6 {[%clk 0:02:35.2]} 3. Nf3 {[%clk 0:02:42.6]} 3... b6 {[%clk 0:02:32.1]}
4. a3 {[%clk 0:02:41.5]} 4... Ba6 {[%clk 0:02:26.5]} 5. Qc2 {[%clk 0:02:40.8]}
5... Bb7 {[%clk 0:02:26.3]} 6. Nc3 {[%clk 0:02:40.2]} 6... c5 {[%clk 0:02:25.7]}
7. e4 {[%clk 0:02:39.7]} 7... cxd4 {[%clk 0:02:18.3]} 8. Nxd4 {[%clk 0:02:40.6]}
8... Nc6 {[%clk 0:02:18.9]} 9. Nxc6 {[%clk 0:02:38.9]} 9... Bxc6 {[%clk
0:02:19.8]} 10. Bf4 {[%clk 0:02:34.7]} 10... Bc5 {[%clk 0:02:09.8]} 11. Rd1
{[%clk 0:02:22.5]} 11... O-O {[%clk 0:01:44.6]} 12. Be2 {[%clk 0:02:21.1]} 12...
a5 {[%clk 0:01:43.7]} 13. O-O {[%clk 0:02:19.6]} 13... Qe7 {[%clk 0:01:39.8]}
14. Bg5 {[%clk 0:02:12.6]} 14... h6 {[%clk 0:01:39.5]} 15. Bh4 {[%clk
0:02:12.9]} 15... d6 {[%clk 0:01:38.5]} 16. Kh1 {[%clk 0:01:52.5]} 16... g5
{[%clk 0:01:38.4]} 17. Bg3 {[%clk 0:01:52.6]} 17... e5 {[%clk 0:01:38.7]} 18.
Nd5 {[%clk 0:01:40.4]} 18... Nxd5 {[%clk 0:01:35.5]} 19. cxd5 {[%clk 0:01:41.3]}
19... Bd7 {[%clk 0:01:33.7]} 20. f3 {[%clk 0:01:34.8]} 20... a4 {[%clk
0:01:28.3]} 21. Bf2 {[%clk 0:01:30.5]} 21... Kh8 {[%clk 0:01:26.7]} 22. Qd2
{[%clk 0:01:25.4]} 22... h5 {[%clk 0:01:18.3]} 23. Be3 {[%clk 0:01:22.8]} 23...
Rg8 {[%clk 0:01:18.3]} 24. g3 {[%clk 0:01:17]} 24... h4 {[%clk 0:01:11.8]} 25.
gxh4 {[%clk 0:01:07.9]} 25... gxh4 {[%clk 0:01:10.7]} 26. Bxc5 {[%clk
0:01:07.7]} 26... bxc5 {[%clk 0:01:10.8]} 27. Qh6# {[%clk 0:01:07.5]} 1-0

[Event "Late-Titled-Tuesday-Blitz-March-19-2024"]
[Site "Chess.com"]
[Date "2024.03.19"]
[Round "2"]
[White "ExchangeAB"]
[Black "MarcoRiehle"]
[Result "0-1"]
[WhiteElo "2501"]
[BlackElo "2785"]
[TimeControl "180+1"]
[EndTime "14:15:52 PDT"]
[Termination "MarcoRiehle won by checkmate"]

1. e4 {[%clk 0:03:00.9]} 1... e5 {[%clk 0:02:59.5]} 2. Nf3 {[%clk 0:03:00]} 2...
Nf6 {[%clk 0:02:59.9]} 3. Bc4 {[%clk 0:03:00.5]} 3... Nxe4 {[%clk 0:02:59.7]} 4.
Nxe5 {[%clk 0:02:41.5]} 4... d5 {[%clk 0:02:59.4]} 5. Be2 {[%clk 0:02:38.4]}
5... Bd6 {[%clk 0:02:58.9]} 6. d4 {[%clk 0:02:37.9]} 6... Nc6 {[%clk 0:02:58.5]}
7. Nxc6 {[%clk 0:02:35.4]} 7... bxc6 {[%clk 0:02:59.4]} 8. Nd2 {[%clk
0:02:33.9]} 8... f5 {[%clk 0:02:58.6]} 9. Nf3 {[%clk 0:02:32.4]} 9... O-O {[%clk
0:02:57.6]} 10. O-O {[%clk 0:02:32.3]} 10... Bd7 {[%clk 0:02:55.9]} 11. c3
{[%clk 0:02:31.4]} 11... g5 {[%clk 0:02:55]} 12. Ne1 {[%clk 0:02:27.4]} 12... h6
{[%clk 0:02:53.2]} 13. f3 {[%clk 0:02:20.4]} 13... Nf6 {[%clk 0:02:52.8]} 14.
Nd3 {[%clk 0:02:19.9]} 14... f4 {[%clk 0:02:49.2]} 15. Re1 {[%clk 0:02:19.1]}
15... Re8 {[%clk 0:02:49.1]} 16. Bd2 {[%clk 0:02:14.9]} 16... Bf5 {[%clk
0:02:48.1]} 17. Bf1 {[%clk 0:02:14]} 17... Nd7 {[%clk 0:02:38.5]} 18. Rxe8+
{[%clk 0:02:10.8]} 18... Qxe8 {[%clk 0:02:39.4]} 19. Qe1 {[%clk 0:02:08.7]}
19... Kf7 {[%clk 0:02:36.6]} 20. Qxe8+ {[%clk 0:02:08.2]} 20... Rxe8 {[%clk
0:02:37.5]} 21. Re1 {[%clk 0:02:08.3]} 21... Rxe1 {[%clk 0:02:37.1]} 22. Bxe1
{[%clk 0:02:09.2]} 22... c5 {[%clk 0:02:37.8]} 23. dxc5 {[%clk 0:02:06]} 23...
Nxc5 {[%clk 0:02:38.7]} 24. Nxc5 {[%clk 0:02:05.5]} 24... Bxc5+ {[%clk
0:02:39.6]} 25. Bf2 {[%clk 0:02:05.9]} 25... Bxf2+ {[%clk 0:02:37]} 26. Kxf2
{[%clk 0:02:06.8]} 26... Ke6 {[%clk 0:02:37.4]} 27. Ke1 {[%clk 0:02:00.4]} 27...
c5 {[%clk 0:02:37.2]} 28. Kd2 {[%clk 0:02:00.5]} 28... Ke5 {[%clk 0:02:34.5]}
29. Bd3 {[%clk 0:01:57]} 29... Be6 {[%clk 0:02:32.6]} 30. a3 {[%clk 0:01:55.4]}
30... h5 {[%clk 0:02:30.1]} 31. h3 {[%clk 0:01:53.5]} 31... d4 {[%clk
0:02:27.8]} 32. Be2 {[%clk 0:01:48]} 32... Bd5 {[%clk 0:02:26.6]} 33. b4 {[%clk
0:01:44.3]} 33... cxb4 {[%clk 0:02:21.2]} 34. cxb4 {[%clk 0:01:26.2]} 34... g4
{[%clk 0:02:20.4]} 35. hxg4 {[%clk 0:01:25.9]} 35... hxg4 {[%clk 0:02:20.4]} 36.
a4 {[%clk 0:01:25.7]} 36... g3 {[%clk 0:02:18.8]} 37. a5 {[%clk 0:01:23.5]}
37... Bb7 {[%clk 0:02:12.9]} 38. b5 {[%clk 0:01:20.9]} 38... Kd5 {[%clk
0:02:13.1]} 39. Kc2 {[%clk 0:01:04.6]} 39... Kc5 {[%clk 0:02:12]} 40. Kb3 {[%clk
0:01:02.1]} 40... Bd5+ {[%clk 0:02:08]} 41. Ka4 {[%clk 0:00:59.9]} 41... Bc4
{[%clk 0:02:04.9]} 42. Bxc4 {[%clk 0:00:58.5]} 42... Kxc4 {[%clk 0:02:05.8]} 43.
b6 {[%clk 0:00:58.6]} 43... d3 {[%clk 0:02:06.3]} 44. b7 {[%clk 0:00:51.1]}
44... d2 {[%clk 0:02:06.6]} 45. b8=Q {[%clk 0:00:50.8]} 45... d1=Q+ {[%clk
0:02:06.7]} 46. Ka3 {[%clk 0:00:51.1]} 46... Qa1# {[%clk 0:02:07.1]} 0-1

[Event "Late-Titled-Tuesday-Blitz-March-19-2024"]
[Site "Chess.com"]
[Date "2024.03.19"]
[Round "2"]
[White "RantomOpening"]
[Black "RichardShtivelband"]
[Result "1-0"]
[WhiteElo "2590"]
[BlackElo "2371"]
[TimeControl "180+1"]
[EndTime "14:15:55 PDT"]
[Termination "RantomOpening won by resignation"]

1. e4 {[%clk 0:03:00.7]} 1... e5 {[%clk 0:02:59]} 2. Nf3 {[%clk 0:02:59.8]} 2...
Nc6 {[%clk 0:02:59.6]} 3. c3 {[%clk 0:03:00]} 3... Nf6 {[%clk 0:02:58.8]} 4. d4
{[%clk 0:03:00.2]} 4... Nxe4 {[%clk 0:02:57.7]} 5. Bd3 {[%clk 0:02:59.3]} 5...
d5 {[%clk 0:02:54.3]} 6. Nxe5 {[%clk 0:02:59.5]} 6... Nxe5 {[%clk 0:02:54]} 7.
dxe5 {[%clk 0:03:00.4]} 7... Nc5 {[%clk 0:02:52.4]} 8. Bc2 {[%clk 0:02:59.3]}
8... Be7 {[%clk 0:02:52.4]} 9. O-O {[%clk 0:02:57.2]} 9... O-O {[%clk
0:02:50.7]} 10. Nd2 {[%clk 0:02:56.7]} 10... d4 {[%clk 0:02:48.6]} 11. cxd4
{[%clk 0:02:48.2]} 11... Qxd4 {[%clk 0:02:47.3]} 12. Nf3 {[%clk 0:02:46.1]}
12... Qxd1 {[%clk 0:02:46]} 13. Rxd1 {[%clk 0:02:47]} 13... Bg4 {[%clk
0:02:45.6]} 14. Be3 {[%clk 0:02:46.8]} 14... Bxf3 {[%clk 0:02:44.4]} 15. gxf3
{[%clk 0:02:47.7]} 15... Rfd8 {[%clk 0:02:41.5]} 16. f4 {[%clk 0:02:47.8]} 16...
b6 {[%clk 0:02:38.3]} 17. b4 {[%clk 0:02:37]} 17... Nd7 {[%clk 0:02:33.7]} 18.
Bf5 {[%clk 0:02:30.5]} 18... Nf8 {[%clk 0:02:32.6]} 19. b5 {[%clk 0:02:29.7]}
19... a6 {[%clk 0:02:31.2]} 20. Be4 {[%clk 0:02:28.7]} 20... Ra7 {[%clk
0:02:27.1]} 21. Rxd8 {[%clk 0:02:03.6]} 21... Bxd8 {[%clk 0:02:25.2]} 22. Bc6
{[%clk 0:02:03.1]} 22... axb5 {[%clk 0:02:24.6]} 23. Bxb5 {[%clk 0:02:04]} 23...
c5 {[%clk 0:02:15.9]} 24. a4 {[%clk 0:02:00.8]} 24... Be7 {[%clk 0:02:01.5]} 25.
Rd1 {[%clk 0:01:57.1]} 25... g6 {[%clk 0:01:58.2]} 26. Kg2 {[%clk 0:01:53.3]}
26... Ne6 {[%clk 0:01:50.9]} 27. Kf3 {[%clk 0:01:49.3]} 27... Nc7 {[%clk
0:01:50.5]} 28. Rb1 {[%clk 0:01:39.7]} 28... Nxb5 {[%clk 0:01:48.5]} 29. Rxb5
{[%clk 0:01:40.6]} 29... Rxa4 {[%clk 0:01:42.4]} 30. Rxb6 {[%clk 0:01:40.9]}
30... c4 {[%clk 0:01:37.4]} 31. Rc6 {[%clk 0:01:39.8]} 31... h5 {[%clk
0:01:34.9]} 32. Bd4 {[%clk 0:01:39.3]} 32... Kh7 {[%clk 0:01:07.5]} 33. Rc7
{[%clk 0:01:35.1]} 1-0